{"text_format":"1","workbook":"xlsx","n_sheets":4,"sheets":["data","text","New CP33","Re-enrolled CP33"],"not_rendered":{"charts":0,"images":11,"macros":1,"external_links":1,"defined_names":5,"comments":0,"pivot_tables":0},"unopened":[],"bounds":{"document_bytes":16777216,"sheet_cells":100000,"rows_first":2000,"rows_last":500,"rows_between":2000,"halvings":0,"cell_chars":16384,"cell_head_chars":4096},"cells_cut":0,"cells_raw":0,"read":"whole","date_system":"1900"}

{"sheet":"data","index":0,"n_rows":124,"n_cols":6,"rows_kept":124,"cut":false,"hidden":true,"merged":[[122,4,122,11],[123,4,123,11],[62,3,62,15],[64,2,64,13],[65,2,65,13],[66,2,66,13],[69,3,69,14],[70,3,70,14],[71,3,71,14],[56,5,56,16],[58,5,58,16],[59,5,59,16],[57,5,57,13],[121,4,121,11]]}
["Participant",null,"Project or Contract"]
["Location",null,"County"]
["Farm Number",null,"Tract Number"]
[null,null,null,null,1]
[null,"Select ",null,null,2]
["x","CP 1",null,null,3]
[null,"CP 2",null,null,4]
[null,"CP 4D",null,null,5]
[null,"CP 8A",null,null,6]
[null,"CP 9",null,null,7]
[null,"CP 15A","new",null,8]
[null,"CP 21","re-enrolled",null,9]
[null,"CP 22",null,null,10]
[null,"CP 23"]
[null,"CP 23A"]
[null,"CP 29"]
[null,"CP 30"]
[null,"CP 33"]
[null,"CP 42"]
[]
[null,"Over-seeding Planned"]
["Mowing Pattern (Check 1) "]
[null,"Entire Acreage"]
[null,"Alternating row"]
[null,"Alternating block",null,null,"10 yrs to 10 yrs, 11 months           "]
[null,"Tree / Shrub Area  ",null,null,"11 yrs to 11 yrs, 11 months           "]
[null,"in year 4 or 5, but before end of year 6           ",null,null,"12 yrs to 12 yrs, 11 months           "]
[null,"in year 4 or 5, but before end of year 6",null,null,"13 yrs to 13 yrs, 11 months           "]
[null,"in year 4 or 5, but before end of year 6",null,null,"14 yrs to 14 yrs, 11 months           "]
[null,"in year 4 or 5, but before end of year 9           ",null,null,"15 years                                             "]
[null,"in year 4 or 5, but before end of year 9           ",null,null,"Re-enrollment contract"]
[null,"in year 4 or 5, but before end of year 9           "]
[{"$f":"data!#REF!","v":{"$error":"#REF!"}},"Not Applicable"]
[null,"before end of year 8"]
[null,"before end of year 9"]
[null,"before end of year 10"]
[null,"before end of year 11"]
[null,"before end of year 12"]
[null,"before end of year 13"]
[null,"at re-enrollment"]
[]
[null,{"$f":"indirect","v":{"$error":"#NAME?"}}]
[]
[]
[]
[]
[]
[null,null,"Select a Purpose",null,null,"Select Mowing Height"]
["Select County",null,"Reduce the amount of sediment and nutrients leaving the cropfield.",null,null,"Mow cool-season grasses no lower than 6 inches."]
["Adams",null,"Improve water quality by reducing runoff of sediment and nutrients.",null,null,"Mow warm-season grasses no lower than 8 inches."]
["Allegheny",null,"Provide long-term grassland habitat for wildlife."]
["Armstrong"]
["Beaver"]
["Bedford"]
["Berks"]
["Blair",null,"Select site preparation method",null,"  "]
["Bradford",null,"Apply appropriate herbicide(s) to CP33 acres prior to seeding, to remove existing vegetation.  ",null,null,"Use non-selective herbicides (like glyphosate) to remove all existing vegetation.  Extremely vigorous plants may require multiple treatments: apply herbicide(s) in early fall of the year prior to WSG planting, followed by another spring application of herbicides at least two weeks prior to planting.  Always follow herbicide label instructions for rate, timing, and methods of herbicide application(s).  Take special care to avoid herbicide carryover that may negatively affect the CRP or CREP planting."]
["Bucks",null,"Cultivate the CP33 acres, to remove existing vegetation and prepare the seedbed. ",null,null,"Cultivation offers an alternative to herbicides, but requires careful consideration, as it is often less effective than herbicides for killing unwanted vegetation, may actually stir up weed seeds in the soil, and may increase the risk of runoff or erosion from sloped fields.  NRCS strongly recommends cover crops or nurse crops for erosion control and weed suppression on cultivated sites.  Plant cover crops of wheat, barley, or oats on the CP33 acres in the early fall of the year prior to WSG planting.  Plant nurse crops of wheat, barley, or oats (oats are preferred, because they offer less competition to the new grasses) with the WSG seeds to minimize erosion and suppress weeds while minimizing competition.  Seed nurse crops at 1 bushel per acre."]
["Butler",null,"No site preparation is needed.",null,null,"This option only applies to fields with little or no weed pressure or competing vegetation AND little or no seed bed.  Be aware that weed control is easiest and most effective prior to planting WSGs, rather than after.  No cost-sharing is available from USDA for this activity. "]
["Cambria"]
["Cameron"]
["Carbon"]
["Centre"]
["Chester"]
["Clarion"]
["Clearfield"]
["Clinton"]
["Columbia"]
["Crawford"]
["Cumberland",null,null,"Conduct Prescribed Mowing on CP33 acres, dispersing mowing residues evenly across mowed areas.  Avoid wind rows, clumping, or other accumulated residues that may smother the desired cover or prevent seed-to-soil contact. "]
["Dauphin",null,null,"Conduct Prescribed Mowing on CP33 acres, removing mowing residues from the field by raking and baling, then destroying or donating residues.  Coordinate with FSA staff, who must verify the disposal of baled residues.  (Fee charged.) "]
["Delaware",null,null,"No management action needed.  No cost-sharing is associated with this option.  "]
["Elk"]
["Erie",null,"Select a MCM"]
["Fayette",null,"Inter-seeding / Overseeding"]
["Forest",null,"Prescribed Burning"]
["Franklin",null,"Prescribed Mowing"]
["Fulton"]
["Greene"]
["Huntingdon"]
["Indiana"]
["Jefferson"]
["Juniata"]
["Lackawanna"]
["Lancaster"]
["Lawrence"]
["Lebanon"]
["Lehigh"]
["Luzerne"]
["Lycoming"]
["McKean"]
["Mercer"]
["Mifflin"]
["Monroe"]
["Montgomery"]
["Montour"]
["Northampton"]
["Northumberland"]
["Perry"]
["Philadelphia"]
["Pike"]
["Potter"]
["Schuylkill"]
["Snyder"]
["Somerset"]
["Sullivan"]
["Susquehanna"]
["Tioga"]
["Union"]
["Venango"]
["Warren"]
["Washington"]
["Wayne"]
["Westmoreland"]
["Wyoming"]
["York"]
[]
[]
[]
[null,null,null,"   "]
[null,null,null,"Select a seeding method","SeedingMethodLookup"]
[null,null,1,"No-Till drill /specialized No-Till drill ","After completion of site preparations, plant the selected seed mixture with a no-till drill, taking care to place seed at the proper depth in the soil.  Seeding pattern should be perpendicular to the direction of surface water flow whenever possible.  Note that only switchgrass can be planted with a conventional no-till drill; all other WSGs require a no-till drill equipped with “fluffy seed” boxes or seed agitators of some kind.  Such drills may be available for free to USDA participants, from local PA Game Commission offices or Pheasants Forever chapters.  "]
[null,null,2,"Conventional drill  ","After completion of site preparations, plant the selected seed mixture with a conventional drill, taking care to place seed at the proper depth in the soil.  Note that only switchgrass can be planted with a conventional no-till drill; all other WSGs require a no-till drill equipped with “fluffy seed” boxes or seed agitators of some kind.  Cultipack/firm seed bed after seeding.  Seed and cultipack perpendicular to the direction of surface water flow whenever possible.  "]
[null,null,3,"Broadcasting  ","After completion of site preparations, plant the selected seed mixture by broadcasting seed.  Increase seeding rates by 50% more seed per acre when broadcasting, to compensate for lower germination rates resulting from less seed-to-soil contact.  For example, if a seed mixture’s no-till seeding rate is 6 lbs/ac, then the same seed mixture’s broadcast seeding rate would be 9 lbs/ac, to achieve similar germination rates.  Calibrate the broadcaster prior to spreading seed; use a free-flowing “carrier” material with the seed if needed.  For best results, broadcast half the total seed in one pattern (i.e. East – West), then broadcast the remaining seed perpendicular to the previous pattern (i.e. North – South).  Cultipack/firm seed bed after broadcasting; cultipacking pattern should be perpendicular to the direction of surface water flow whenever possible.     "]

{"sheet":"text","index":1,"n_rows":14,"n_cols":17,"rows_kept":14,"cut":false,"hidden":true,"merged":[[0,0,0,13],[11,16,11,27],[12,16,12,27],[13,16,13,27]]}
["CP"]
[1,2,"4D","8A",9,"15A",21,22,23,"23A",29,30,33,42,"comment"]
[null,null,null,"x",null,"x","x",null,null,null,null,null,null,null,"May receive a one-time Prescribed Mowing of their entire acreage.  "]
[]
[]
[]
[]
[]
[]
[]
[]
[null,null,null,null,null,null,null,null,null,null,null,null,null,null,null,null,"No-Till drill /specialized No-Till drill.  After completion of site preparations, plant the selected seed mixture with a no-till drill, taking care to place seed at the proper depth in the soil.  Seeding pattern should be perpendicular to the direction of surface water flow whenever possible.  Note that only switchgrass can be planted with a conventional no-till drill; all other WSGs require a no-till drill equipped with “fluffy seed” boxes or seed agitators of some kind.  Such drills may be available for free to USDA participants, from local PA Game Commission offices or Pheasants Forever chapters.  "]
[null,null,null,null,null,null,null,null,null,null,null,null,null,null,null,null,"Conventional drill.  After completion of site preparations, plant the selected seed mixture with a conventional drill, taking care to place seed at the proper depth in the soil.  Note that only switchgrass can be planted with a conventional no-till drill; all other WSGs require a no-till drill equipped with “fluffy seed” boxes or seed agitators of some kind.  Cultipack/firm seed bed after seeding.  Seed and cultipack perpendicular to the direction of surface water flow whenever possible.  "]
[null,null,null,null,null,null,null,null,null,null,null,null,null,null,null,null,"Broadcasting.  After completion of site preparations, plant the selected seed mixture by broadcasting seed.  Increase seeding rates by 50% more seed per acre when broadcasting, to compensate for lower germination rates resulting from less seed-to-soil contact.  For example, if a seed mixture’s no-till seeding rate is 6 lbs/ac, then the same seed mixture’s broadcast seeding rate would be 9 lbs/ac, to achieve similar germination rates.  Calibrate the broadcaster prior to spreading seed; use a free-flowing “carrier” material with the seed if needed.  For best results, broadcast half the total seed in one pattern (i.e. East – West), then broadcast the remaining seed perpendicular to the previous pattern (i.e. North – South).  Cultipack/firm seed bed after broadcasting; cultipacking pattern should be perpendicular to the direction of surface water flow whenever possible.     "]

{"sheet":"New CP33","index":2,"n_rows":119,"n_cols":15,"rows_kept":119,"cut":false,"hidden":false,"merged":[[64,2,64,6],[64,7,64,10],[64,11,64,14],[61,2,61,6],[61,7,61,10],[61,11,61,14],[62,2,62,6],[62,7,62,10],[62,11,62,14],[63,2,63,6],[63,7,63,10],[63,11,63,14],[78,6,79,7],[78,8,79,8],[78,9,79,9],[78,10,78,11],[78,12,78,14],[84,4,84,5],[84,6,84,7],[84,12,84,14],[85,4,85,5],[104,4,104,8],[105,4,105,8],[102,11,103,11],[102,12,103,12],[102,9,103,9],[80,4,80,5],[80,6,80,7],[80,12,80,14],[81,4,81,5],[81,6,81,7],[81,12,81,14],[85,6,85,7],[85,12,85,14],[82,4,82,5],[82,6,82,7],[82,12,82,14],[83,4,83,5],[83,6,83,7],[83,12,83,14],[91,2,91,10],[92,2,92,14],[88,4,88,5],[88,6,88,7],[88,12,88,14],[46,2,46,14],[54,2,54,14],[52,3,52,14],[55,2,55,14],[42,2,42,8],[43,2,43,8],[50,2,50,6],[51,2,51,14],[42,15,43,15],[36,2,36,8],[37,2,37,8],[38,2,38,8],[39,2,39,8],[44,2,44,8],[36,12,36,14],[37,12,37,14],[38,12,38,14],[41,2,41,11],[39,12,39,14],[116,2,116,14],[115,2,115,10],[72,2,72,14],[57,2,57,14],[58,2,58,14],[59,2,59,14],[60,2,60,14],[102,4,103,7],[101,2,102,2],[102,13,102,14],[70,2,70,14],[102,3,103,3],[102,10,103,10],[77,2,78,2],[78,3,79,3],[78,4,79,5],[111,4,111,8],[112,4,112,8],[113,4,113,8],[106,4,106,8],[107,4,107,8],[108,4,108,8],[109,4,109,8],[110,4,110,8],[2,11,2,13],[42,12,42,14],[43,12,43,14],[44,12,44,14],[15,2,15,14],[19,2,19,14],[7,2,7,14],[10,2,10,14],[2,4,2,8],[3,4,3,8],[4,4,4,8],[30,2,30,8],[31,2,31,8],[29,2,29,8],[22,2,22,14],[2,2,2,3],[3,2,3,3],[4,2,4,3],[11,2,11,3],[12,2,12,3],[32,12,32,14],[33,12,33,14],[35,2,35,11],[33,2,33,8],[13,2,13,3],[30,12,30,14],[31,12,31,14],[23,3,23,14],[32,2,32,8],[16,2,16,14],[17,2,17,14],[21,2,21,13],[4,11,4,13],[26,12,26,14],[89,4,89,5],[89,6,89,7],[89,12,89,14],[86,4,86,5],[86,6,86,7],[86,12,86,14],[87,4,87,5],[87,6,87,7],[87,12,87,14],[65,2,65,6],[65,7,65,10],[65,11,65,14],[66,2,66,6],[66,7,66,10],[66,11,66,14],[67,2,67,6],[67,7,67,10],[67,11,67,14]]}
[]
[]
[null,null,"Participant:",null,null,null,null,null,null,null,"FSA Contract:  "]
[null,null,"Location:",null,null,null,null,null,null,null,"County:  "]
[null,null,"Farm Number:",null,null,null,null,null,null,null,"Tract Number:  "]
[]
[null,null,"Definition:"]
[null,null,"The establishment and maintenance of permanent vegetative cover, consisting of native warm-season grasses and forbs or legumes, around the edges of cropfields.  "]
[]
[null,null,"Purpose:  "]
[null,null,"This practice establishes and maintains edge-of-field buffers of native grasses, forbs, and legumes on eligible cropland to: "]
[null,null,"1."]
[null,null,"2."]
[null,null,"3."]
[null,null,"Description:"]
[null,null,"Native warm-season grasses (WSGs) grow best in the summer, and go dormant in mid- to late fall.  WSGs include grasses like switchgrass, Indian grass, big bluestem, little bluestem and eastern gamagrass.  These grasses grow strong root systems very quickly, but grow leaves and other above-ground structures more slowly.  WSGs are excellent for long-term erosion control and improving water quality.  As bunch grasses, they do not form dense sod, but retain open spaces among their grass clumps (see winter picture above).  Legumes and wildflowers can thrive in the open spaces among WSGs.  They provide excellent nesting and foraging habitat for wildlife in spring, summer, and fall.  WSGs' stiff stems typically remain upright throughout the year; because they don't pack down under snowfall, WSGs provide excellent winter cover for wildlife. "]
[]
[]
[null,"Yes","Practice Guidance for New CP33 Acres:  "]
[null,"Yes","Establish buffers of WSGs and legumes/wildflowers around the edges of the fields indicated in Table 1 and on the Conservation Plan Map, by following the Site Preparation and Planting Guidance below.  Weed control (mowing or herbicide treatment) during the period of three years after seeding may help the WSG buffer(s) establish succeessfully.  After the WSGs are established, follow the Operation and Maintenance requirements below.  CRP/CREP contracts also require periodic management of CP33 acres, which should follow the Mid-Contract Management guidance below."]
[null,"Yes","Site Preparation Method"]
[null,"Yes","Select site preparation method"]
[null,"Yes",{"$f":"IF(C22=data!C57,data!F57, IF(C22=data!C58,data!F58, IF(C22=data!C59,data!F59)))","v":false}]
[null,null,"SITE-                   SPECIFIC NOTES","Enter text here"]
[]
[]
[null,"Yes","Planting Guidance for New CP33 Acres      ",null,null,null,null,null,null,null,null,null,"Items in gray for USDA"]
[null,"Yes",null,null,null,null,null,null,null,null,null,"lbs of ",null,"use only"]
[null,"Yes","Seed Mix and drainage class*",null,null,null,null,null,null,"lbs / ac","Acres","seed",null,"Seed tag verified?"]
[null,"Yes","All native warm-season grasses  (choose one mix)",null,null,null,null,null,null,null,null,"needed","Yes","No"]
[null,"Yes","          Switchgrass (3 lbs) and deertongue (3 lbs)                                     WD, MWD, SPD, PD ",null,null,null,null,null,null,6,null,{"$f":"ROUNDUP((J31*K31),0)","v":0}]
[null,"Yes","          Big bluestem (3 lbs), Indiangrass (1 lb), and Little Bluestem (2)    EWD, WD, MWD ",null,null,null,null,null,null,6,null,{"$f":"ROUNDUP((J32*K32),0)","v":0}]
[null,"Yes","          Big bluestem (3 lbs), Indiangrass (2 lbs), and switchgrass (1)    EWD, WD, MWD, SPD ",null,null,null,null,null,null,6,null,0]
[null,"Yes","          Big bluestem (3 lbs), Indiangrass (1 lb), Little bluestem (2) and switchgrass (1)                        EWD, WD, MWD, SPD   ",null,null,null,null,null,null,7,null,0]
[null,"Yes",null,null,"OR"]
[null,"Yes","Mixed native warm-season and cool-season grasses (choose one mix)"]
[null,"Yes","          Big bluestem (2 lbs), Indiangrass (1 lb), Little bluestem (1 lb), switchgrass (1 lb), sideoats grama (1 lb), and Canada wildrye (2 lbs)    EWD, WD, MWD   ",null,null,null,null,null,null,8,null,{"$f":"ROUNDUP((J37*K37),0)","v":0}]
[null,"Yes","          Big bluestem (3 lbs), eastern gamagrass (2 lbs), switchgrass (1 lb), deertongue (1 lb), and Virginia wildrye (3 lbs)    MWD, SPD ",null,null,null,null,null,null,10,null,{"$f":"ROUNDUP((J38*K38),0)","v":0}]
[null,"Yes","          Riverbank wildrye (5 lbs), Virginia wildrye (5 lbs), and switchgrass (1 lb)    WD, MWD, SPD, PD ",null,null,null,null,null,null,11,null,0]
[null,"Yes","          Canada wildrye (4 lbs) and switchgrass (3 lbs)    EWD, WD, MWD, SPD",null,null,null,null,null,null,7,null,0]
[null,"Yes",null,null,"OR"]
[null,"Yes","Native cool-season grasses  (choose one mix) "]
[null,"Yes","          Canada wildrye (3 lbs), Virginia wildrye (3 lbs), Riverbank wildrye (2 lbs), and Bottlebrush (2 lbs)    WD, MWD, SPD   ",null,null,null,null,null,null,10,null,{"$f":"ROUNDUP((J43*K43),0)","v":0}]
[null,"Yes","          Canada wildrye (4 lbs), Virginia wildrye (4 lbs), and Riverbank wildrye (2 lbs)    EWD, WD, MWD   ",null,null,null,null,null,null,10,null,{"$f":"ROUNDUP((J44*K44),0)","v":0}]
[null,"Yes","         Riverbank wildrye (4 lbs), Virginia wildrye (4 lbs), and Canada wildrye (2 lbs)    WD, MWD, SPD  ",null,null,null,null,null,null,10,null,0]
[null,"Yes"]
[null,"Yes","* Abbreviations represent the following soil drainage categories:  EWD = Excessively Well Drained; WD = Well Drained; MWD = Moderately Well Drained; SPD = Somewhat Poorly Drained; PD = Poorly Drained"]
[]
[]
[null,"Yes","Planting Method for New CP33 acres"]
[null,"Yes","Select a seeding method"]
[null,"Yes",{"$f":"IF(C51=data!D122,data!E122,IF(C51=data!D123,data!E123,IF(C51=data!D124,data!E124)))","v":false}]
[null,null,"SITE-                   SPECIFIC NOTES","Enter text here"]
[null,"Yes","Establishment of New CP33 Acres"]
[null,"Yes","Warm-season grasses typically need two to three years after seeding to fully establish.  During those three years, WSG establishment improves greatly with reduction of competing vegetation and/or weed pressure.  As a result, CRP and CREP rules allow mowing and spraying of CP33 acres, at any time, for three years after seeding.  Do not mow CP33 acres lower than 8 inches, and follow all label instructions when applying appropriate herbicides.  Contact NRCS prior to mowing or spraying, for technical assistance and to document the establishment actions taken."]
[null,"Yes","After the establishment period ends, mowing and spraying must follow the more restrictive timing and guidance given in Operation and Maintenance, below.  Therefore, NRCS recommends using the available mowing and/or spraying to its full advantage in the establishment years, to promote the most vigorous CP33 cover possible.    "]
[null,null,"Operation and Maintenance:   "]
[null,null,"To be compliant with the CRP/CREP contract, 60% or more of the cover on CP33 acreage must be native perennial grasses which are acceptable to CRP/CREP.  Non-grass vegetation that is beneficial to wildlife (except woody vegetation) may be present, but cannot exceed 40% of the cover on CP33 acres.  Clovers and wildflowers, whether part of an approved seed mix or occurring naturally on the site, are “other species beneficial to wildlife” and cannot exceed 40% of the cover on CP33 acres.  Encroachment of tall fescue cannot exceed 10% of the cover on CP33 acres."]
[null,null,"To control unwanted vegetation and to keep the existing conservation cover in compliance with the CRP/CREP contract, perform maintenance (by spot mowing or herbicide treatment) on specific, limited locations where weeds occur.  To avoid permanent damage to CP33 cover, do not mow WSGs below 8 inches.  Treatment with appropriate herbicides should always follow label directions for rate, amount, and timing of herbicide application.  "]
[null,null,"Spot mowing and herbicide treatment can only occur on acres with weed pressure, and cannot exceed 1/3 (33%) of any field in a given year.  Both spot mowing and herbicide treatment must occur between August 1 and August 31.  If mowing more than 1/3 of a field or spot mowing or herbicide treatment needed at other times of the year—for example, thistle control in May or early June—is needed, it must be requested from and pre-approved by the FSA County Committee.  "]
[null,null,"Control noxious weeds on all CP33 acres over the entire length of the CRP/CREP contract.  Mowing alone may not be sufficient to control noxious or woody vegetation; a follow-up herbicide treatment may be necessary.  Any CP33 cover destroyed must be re-established."]
[null,null,"animated oat",null,null,null,null,"giant hogweed",null,null,null,"musk/nodding thistle"]
[null,null,"broomrape",null,null,null,null,"goatsrue",null,null,null,"Palmer amaranth"]
[null,null,"bull thistle",null,null,null,null,"hydrilla",null,null,null,"poison hemlock"]
[null,null,"Canada thistle",null,null,null,null,"johnsongrass",null,null,null,"purple loosestrife"]
[null,null,"common waterhemp",null,null,null,null,"kudzu",null,null,null,"shattercane"]
[null,null,"dodder",null,null,null,null,"mile-a-minute",null,null,null,"tall waterhemp"]
[null,null,"Eur. wand loosestrife",null,null,null,null,"multiflora rose",null,null,null,"wavyleaf basketgrass"]
[]
[null,null,"Mid-Contract Management (MCM):   "]
[null,null,"Implement the MCM practices indicated in Table 2 below, to prolong, improve, or diversify the benefits of the CP33 cover.  Contact NRCS for a site visit and field evaluation before conducting MCM, to verify that the contracted MCM activity applies to the condition of the site."]
[]
[null,null,"By signing this document, the participant agrees to implement the CP33 conservation practice following the technical recommendations provided by NRCS and approved by FSA.    Any changes to the CP33 practice must receive NRCS and FSA approval prior to implementation."]
[]
[]
[]
[null,null,"Table 1: CP33 Implementation and Schedule"]
[null,null,"Select number of fields",null,null,null,null,null,null,null,"     (items in grey are for USDA reporting only)"]
[null,null,null,"Field","Acres Planned",null,"Year Planned",null,"Acres Applied","Date Applied","Certified by",null,"Comments"]
[null,null,10,null,null,null,null,null,null,null,"NRCS","Part."]
[null,null,null,1]
[{"$f":"IF($C$80<2,\"No\",\"Yes\")","v":"Yes"},null,null,2]
[{"$f":"IF($C$80<3,\"No\",\"Yes\")","v":"Yes"},null,null,3]
[{"$f":"IF($C$80<4,\"No\",\"Yes\")","v":"Yes"},null,null,4]
[{"$f":"IF($C$80<5,\"No\",\"Yes\")","v":"Yes"},null,null,5]
[{"$f":"IF($C$80<6,\"No\",\"Yes\")","v":"Yes"},null,null,6]
[{"$f":"IF($C$80<7,\"No\",\"Yes\")","v":"Yes"},null,null,7]
[{"$f":"IF($C$80<8,\"No\",\"Yes\")","v":"Yes"},null,null,8]
[{"$f":"IF($C$80<9,\"No\",\"Yes\")","v":"Yes"},null,null,9]
[{"$f":"IF($C$80<10,\"No\",\"Yes\")","v":"Yes"},null,null,10]
[]
[null,null,"Certification Statement:"]
[null,null,"I certify that implementation of this conservation practice is complete, meets criteria for the stated purpose(s), and meets the NRCS conservation practice standard and specifications."]
[]
[]
[null,null,"Certified By:"]
[]
[]
[]
[]
[null,null,"Table 2: Mid-Contract Management Activity and Schedule"]
[null,null,"Select number of fields",null,null,null,null,null,null,null,"     (items in grey are for USDA reporting only)"]
[null,null,null,"Field","Mid-Contract Management",null,null,null,null,"Acres Planned","Year Planned","Acres Applied","Year Applied","Certified By:"]
[null,null,10,null,null,null,null,null,null,null,null,null,null,"NRCS / TSP","Participant"]
[null,null,null,1,"Select a MCM"]
[{"$f":"IF($C$104<2,\"No\",\"Yes\")","v":"Yes"},null,null,2,"Select a MCM"]
[{"$f":"IF($C$104<3,\"No\",\"Yes\")","v":"Yes"},null,null,3,"Select a MCM"]
[{"$f":"IF($C$104<4,\"No\",\"Yes\")","v":"Yes"},null,null,4,"Select a MCM"]
[{"$f":"IF($C$104<5,\"No\",\"Yes\")","v":"Yes"},null,null,5,"Select a MCM"]
[{"$f":"IF($C$104<6,\"No\",\"Yes\")","v":"Yes"},null,null,6,"Select a MCM"]
[{"$f":"IF($C$104<7,\"No\",\"Yes\")","v":"Yes"},null,null,7,"Select a MCM"]
[{"$f":"IF($C$104<8,\"No\",\"Yes\")","v":"Yes"},null,null,8,"Select a MCM"]
[{"$f":"IF($C$104<9,\"No\",\"Yes\")","v":"Yes"},null,null,9,"Select a MCM"]
[{"$f":"IF($C$104<10,\"No\",\"Yes\")","v":"Yes"},null,null,10,"Select a MCM"]
[]
[null,null,"Certification Statement:"]
[null,null,"I certify that implementation of this conservation practice is complete, meets criteria for the stated purpose(s), and meets the NRCS conservation practice standard and specifications."]
[]
[null,null,"Certified By:"]

{"sheet":"Re-enrolled CP33","index":3,"n_rows":66,"n_cols":15,"rows_kept":66,"cut":false,"hidden":false,"merged":[[37,2,37,6],[37,7,37,10],[37,11,37,14],[38,2,38,6],[38,7,38,10],[38,11,38,14],[32,2,32,6],[32,7,32,10],[32,11,32,14],[33,2,33,6],[33,7,33,10],[33,11,33,14],[63,2,63,14],[55,4,55,8],[56,4,56,8],[57,4,57,8],[58,4,58,8],[59,4,59,8],[60,4,60,8],[49,13,49,14],[51,4,51,8],[52,4,52,8],[53,4,53,8],[62,2,62,10],[25,20,26,20],[25,21,26,21],[26,2,26,14],[28,2,28,14],[54,4,54,8],[30,2,30,14],[31,2,31,14],[41,2,41,14],[43,2,43,14],[48,2,49,2],[49,3,50,3],[49,4,50,7],[49,9,50,9],[49,10,50,10],[49,11,50,11],[49,12,50,12],[29,2,29,14],[19,2,19,14],[21,2,21,14],[22,3,22,14],[23,3,23,14],[24,3,24,14],[25,3,25,14],[16,2,16,14],[17,2,17,14],[7,2,7,14],[10,2,10,14],[11,2,11,3],[12,2,12,3],[13,2,13,3],[15,2,15,14],[4,2,4,3],[4,4,4,8],[4,11,4,13],[2,2,2,3],[2,4,2,8],[2,11,2,13],[3,2,3,3],[3,4,3,8],[34,11,34,14],[35,2,35,6],[35,7,35,10],[35,11,35,14],[36,2,36,6],[36,7,36,10],[36,11,36,14],[34,2,34,6],[34,7,34,10]]}
[]
[]
[null,null,"Participant:",null,null,null,null,null,null,null,"FSA Contract:  "]
[null,null,"Location:",null,null,null,null,null,null,null,"County:  "]
[null,null,"Farm Number:",null,null,null,null,null,null,null,"Tract Number:  "]
[]
[null,null,"Definition:"]
[null,null,"The maintenance of permanent vegetative cover, consisting of native warm-season grasses and forbs or legumes, around the edges of cropfields.  "]
[]
[null,null,"Purpose:  "]
[null,null,"This practice maintains edge-of-field buffers of native grasses, forbs, and legumes on eligible cropland to: "]
[null,null,"1."]
[null,null,"2."]
[null,null,"3."]
[null,null,"Description:"]
[null,null,"Native warm-season grasses (WSGs) grow best in the summer, and go dormant in mid- to late fall.  WSGs include grasses like switchgrass, Indian grass, big bluestem, little bluestem and eastern gamagrass.  These grasses grow strong root systems very quickly, but grow leaves and other above-ground structures more slowly.  WSGs are excellent for long-term erosion control and improving water quality.  As bunch grasses, they do not form dense sod, but retain open spaces among their grass clumps (see winter picture above).  Legumes and wildflowers can thrive in the open spaces among WSGs.  They provide excellent nesting and foraging habitat for wildlife in spring, summer, and fall.  WSGs' stiff stems typically remain upright throughout the year; because they don't pack down under snowfall, WSGs provide excellent winter cover for wildlife. "]
[]
[]
[null,null,"Practice Guidance for Re-Enrolled CP33 Acres:  "]
[null,null,"Maintain the existing WSGs and legumes/forbs in the fields shown in Table 1 and on the Conservation Plan Map, to provide ongoing erosion control and wildlife habitat for grassland species for the length of the new CRP/CREP contract."]
[null,null,"Grass Management for Re-Enrolled CP33 Acres"]
[null,null,"The current CP33 cover may benefit from actions to re-invigorate the WSGs and prolong the cover throughout the new CRP/CREP contract.  Implement all activities checked below.  More than one management activity may be needed, or none may be needed.  Discuss cost-sharing or reimbursement availability with FSA prior to implementation of the actions. "]
[null,null,null,"Conduct Prescribed Mowing on CP33 acres, dispersing mowing residues evenly across mowed areas.  Avoid wind rows, clumping, or other accumulated residues that may smother the desired cover or prevent seed-to-soil contact. "]
[null,null,null,"Conduct Prescribed Mowing on CP33 acres, removing mowing residues from the field by raking and baling, then destroying or donating residues.  Coordinate with FSA staff, who must verify the disposal of baled residues.  (Fee charged.) "]
[null,null,null,"No management action needed.  No cost-sharing is associated with this option.  "]
[null,null,"SITE-                   SPECIFIC NOTES","Enter text here"]
[]
[null,null,"Operation and Maintenance:   "]
[null,null,"To be compliant with the CRP/CREP contract, 60% or more of the cover on CP33 acreage must be native perennial grasses which are acceptable to CRP/CREP.  Non-grass vegetation that is beneficial to wildlife (except woody vegetation) may be present, but cannot exceed 40% of the cover on CP33 acres.  Clovers and wildflowers, whether part of an approved seed mix or occurring naturally on the site, are “other species beneficial to wildlife” and cannot exceed 40% of the cover on CP33 acres.  Encroachment of tall fescue cannot exceed 10% of the cover on CP33 acres."]
[null,null,"To control unwanted vegetation and to keep the existing conservation cover in compliance with the CRP/CREP contract, perform maintenance (by spot mowing or herbicide treatment) on specific, limited locations where weeds occur.  To avoid permanent damage to CP33 cover, do not mow WSGs below 8 inches.  Treatment with appropriate herbicides should always follow label directions for rate, amount, and timing of herbicide application.  "]
[null,null,"Spot mowing and herbicide treatment can only occur on acres with weed pressure, and cannot exceed 1/3 (33%) of any field in a given year.  Both spot mowing and herbicide treatment must occur between August 1 and August 31.  If mowing more than 1/3 of a field or spot mowing or herbicide treatment needed at other times of the year—for example, thistle control in May or early June—is needed, it must be requested from and pre-approved by the FSA County Committee.  "]
[null,null,"Control noxious weeds on all CP33 acres over the entire length of the CRP/CREP contract.  Mowing alone may not be sufficient to control noxious or woody vegetation; a follow-up herbicide treatment may be necessary.  Any CP33 cover destroyed must be re-established."]
[null,null,"animated oat",null,null,null,null,"giant hogweed",null,null,null,"musk/nodding thistle"]
[null,null,"broomrape",null,null,null,null,"goatsrue",null,null,null,"Palmer amaranth"]
[null,null,"bull thistle",null,null,null,null,"hydrilla",null,null,null,"poison hemlock"]
[null,null,"Canada thistle",null,null,null,null,"johnsongrass",null,null,null,"purple loosestrife"]
[null,null,"common waterhemp",null,null,null,null,"kudzu",null,null,null,"shattercane"]
[null,null,"dodder",null,null,null,null,"mile-a-minute",null,null,null,"tall waterhemp"]
[null,null,"Eur. wand loosestrife",null,null,null,null,"multiflora rose",null,null,null,"wavyleaf basketgrass"]
[]
[null,null,"Mid-Contract Management (MCM):   "]
[null,null,"Implement the MCM practices indicated in Table 1 below, to prolong, improve, or diversify the benefits of the CP33 cover.  Contact NRCS for a site visit and field evaluation before conducting MCM, to verify that the contracted MCM activity applies to the condition of the site."]
[]
[null,null,"By signing this document, the participant agrees to implement the CP33 conservation practice following the technical recommendations provided by NRCS and approved by FSA.    Any changes to the CP33 practice must receive NRCS and FSA approval prior to implementation."]
[]
[]
[]
[null,null,"Table 1: Mid-Contract Management Activity and Schedule"]
[null,null,"Select number of fields",null,null,null,null,null,null,null,"     (items in grey are for USDA reporting only)"]
[null,null,null,"Field","Mid-Contract Management",null,null,null,null,"Acres Planned","Year Planned","Acres Applied","Year Applied","Certified By:"]
[null,null,10,null,null,null,null,null,null,null,null,null,null,"NRCS / TSP","Participant"]
[null,null,null,1,"Select a MCM"]
[{"$f":"IF($C$51<2,\"No\",\"Yes\")","v":"Yes"},null,null,2,"Select a MCM"]
[{"$f":"IF($C$51<3,\"No\",\"Yes\")","v":"Yes"},null,null,3,"Select a MCM"]
[{"$f":"IF($C$51<4,\"No\",\"Yes\")","v":"Yes"},null,null,4,"Select a MCM"]
[{"$f":"IF($C$51<5,\"No\",\"Yes\")","v":"Yes"},null,null,5,"Select a MCM"]
[{"$f":"IF($C$51<6,\"No\",\"Yes\")","v":"Yes"},null,null,6,"Select a MCM"]
[{"$f":"IF($C$51<7,\"No\",\"Yes\")","v":"Yes"},null,null,7,"Select a MCM"]
[{"$f":"IF($C$51<8,\"No\",\"Yes\")","v":"Yes"},null,null,8,"Select a MCM"]
[{"$f":"IF($C$51<9,\"No\",\"Yes\")","v":"Yes"},null,null,9,"Select a MCM"]
[{"$f":"IF($C$51<10,\"No\",\"Yes\")","v":"Yes"},null,null,10,"Select a MCM"]
[]
[null,null,"Certification Statement:"]
[null,null,"I certify that implementation of this conservation practice is complete, meets criteria for the stated purpose(s), and meets the NRCS conservation practice standard and specifications."]
[]
[null,null,"Certified By:"]